{"text_format":"3","workbook":"xlsx","n_sheets":4,"sheets":["Özet","Varlıklar","Borçlar","Kategoriler"],"not_rendered":{"defined_names":10},"read":"whole","date_system":"1900"}

{"sheet":"Özet","index":0,"n_rows":12,"n_cols":4,"rows_kept":12}
[null,"Bilanço"]
[null,null,{"$f":"\"MY-\"&YEAR(TODAY())-1","v":"MY-2016"},{"$f":"\"MY-\"&YEAR(TODAY())","v":"MY-2017"}]
[null,"Varlık Türü","Önceki Yıl","Bu Yıl"]
[null,"Mevcut Varlıklar",{"$f":"SUMIFS(Varlıklar[Önceki Yıl],Varlıklar[Varlık Türü],Pano[[#This Row],[Varlık Türü]])+SUMIFS(Borçlar[Önceki Yıl],Borçlar[Borç Türü],Pano[[#This Row],[Varlık Türü]])","v":600},{"$f":"SUMIFS(Varlıklar[Bu Yıl],Varlıklar[Varlık Türü],Pano[[#This Row],[Varlık Türü]])+SUMIFS(Borçlar[Bu Yıl],Borçlar[Borç Türü],Pano[[#This Row],[Varlık Türü]])","v":600}]
[null,"Sabit Varlıklar",{"$f":"SUMIFS(Varlıklar[Önceki Yıl],Varlıklar[Varlık Türü],Pano[[#This Row],[Varlık Türü]])+SUMIFS(Borçlar[Önceki Yıl],Borçlar[Borç Türü],Pano[[#This Row],[Varlık Türü]])","v":{"v":-100,"d":"-100 "}},{"$f":"SUMIFS(Varlıklar[Bu Yıl],Varlıklar[Varlık Türü],Pano[[#This Row],[Varlık Türü]])+SUMIFS(Borçlar[Bu Yıl],Borçlar[Borç Türü],Pano[[#This Row],[Varlık Türü]])","v":{"v":-85,"d":"-85 "}}]
[null,"Diğer Varlıklar",{"$f":"SUMIFS(Varlıklar[Önceki Yıl],Varlıklar[Varlık Türü],Pano[[#This Row],[Varlık Türü]])+SUMIFS(Borçlar[Önceki Yıl],Borçlar[Borç Türü],Pano[[#This Row],[Varlık Türü]])","v":0},{"$f":"SUMIFS(Varlıklar[Bu Yıl],Varlıklar[Varlık Türü],Pano[[#This Row],[Varlık Türü]])+SUMIFS(Borçlar[Bu Yıl],Borçlar[Borç Türü],Pano[[#This Row],[Varlık Türü]])","v":0}]
[null,"Kısa Vadeli Borçlar",{"$f":"SUMIFS(Varlıklar[Önceki Yıl],Varlıklar[Varlık Türü],Pano[[#This Row],[Varlık Türü]])+SUMIFS(Borçlar[Önceki Yıl],Borçlar[Borç Türü],Pano[[#This Row],[Varlık Türü]])","v":500},{"$f":"SUMIFS(Varlıklar[Bu Yıl],Varlıklar[Varlık Türü],Pano[[#This Row],[Varlık Türü]])+SUMIFS(Borçlar[Bu Yıl],Borçlar[Borç Türü],Pano[[#This Row],[Varlık Türü]])","v":350}]
[null,"Uzun Vadeli Borçlar",{"$f":"SUMIFS(Varlıklar[Önceki Yıl],Varlıklar[Varlık Türü],Pano[[#This Row],[Varlık Türü]])+SUMIFS(Borçlar[Önceki Yıl],Borçlar[Borç Türü],Pano[[#This Row],[Varlık Türü]])","v":0},{"$f":"SUMIFS(Varlıklar[Bu Yıl],Varlıklar[Varlık Türü],Pano[[#This Row],[Varlık Türü]])+SUMIFS(Borçlar[Bu Yıl],Borçlar[Borç Türü],Pano[[#This Row],[Varlık Türü]])","v":0}]
[null,"Öz Sermaye",{"$f":"SUMIFS(Varlıklar[Önceki Yıl],Varlıklar[Varlık Türü],Pano[[#This Row],[Varlık Türü]])+SUMIFS(Borçlar[Önceki Yıl],Borçlar[Borç Türü],Pano[[#This Row],[Varlık Türü]])","v":0},{"$f":"SUMIFS(Varlıklar[Bu Yıl],Varlıklar[Varlık Türü],Pano[[#This Row],[Varlık Türü]])+SUMIFS(Borçlar[Bu Yıl],Borçlar[Borç Türü],Pano[[#This Row],[Varlık Türü]])","v":350}]
[null,"Toplam Varlıklar",{"$f":"Varlıklar[[#Totals],[Önceki Yıl]]","v":500},{"$f":"Varlıklar[[#Totals],[Bu Yıl]]","v":515}]
[null,"Toplam Borç ve Öz Sermaye",{"$f":"Borçlar[[#Totals],[Önceki Yıl]]","v":500},{"$f":"Borçlar[[#Totals],[Bu Yıl]]","v":700}]
[null,"Bakiye",{"$f":"C10-C11","v":0},{"$f":"D10-D11","v":{"v":-185,"d":"-185 "}}]

{"sheet":"Varlıklar","index":1,"n_rows":14,"n_cols":5,"rows_kept":14}
[null,"Varlıklar"]
[{"$nulls":3},{"$f":"MALİ_YIL","v":"MY-2016"},{"$f":"MALİ_YIL_2","v":"MY-2017"}]
[null,"Varlık Türü","Açıklama","Önceki Yıl","Bu Yıl"]
[null,"Mevcut Varlıklar","Nakit",600,600]
[null,"Mevcut Varlıklar","Yatırımlar"]
[null,"Mevcut Varlıklar","Envanterler"]
[null,"Mevcut Varlıklar","Alacak hesapları"]
[null,"Mevcut Varlıklar","Peşin ödenen giderler"]
[null,"Sabit Varlıklar","Mülk ve ekipman"]
[null,"Sabit Varlıklar","Özel maliyetler"]
[null,"Sabit Varlıklar","Öz sermaye ve diğer yatırımlar"]
[null,"Sabit Varlıklar","Az birikmiş amortisman (Negatif Değer)",{"v":-100,"d":"-100 "},{"v":-85,"d":"-85 "}]
[null,"Diğer Varlıklar","Bağış"]
[null,"Toplam Varlıklar",null,{"$f":"SUBTOTAL(109,Varlıklar[Önceki Yıl])","v":500},{"$f":"SUBTOTAL(109,Varlıklar[Bu Yıl])","v":515}]

{"sheet":"Borçlar","index":2,"n_rows":12,"n_cols":5,"rows_kept":12}
[null,"Borçlar"]
[{"$nulls":3},{"$f":"MALİ_YIL","v":"MY-2016"},{"$f":"MALİ_YIL_2","v":"MY-2017"}]
[null,"Borç Türü","Açıklama","Önceki Yıl","Bu Yıl"]
[null,"Kısa Vadeli Borçlar","Borç hesapları",null,350]
[null,"Kısa Vadeli Borçlar","Tahakkuk etmiş ücretler"]
[null,"Kısa Vadeli Borçlar","Tahakkuk etmiş tazminat",500]
[null,"Kısa Vadeli Borçlar","Ödenecek gelir vergileri"]
[null,"Kısa Vadeli Borçlar","Peşin elde edilen gelir"]
[null,"Uzun Vadeli Borçlar","Kredi ödemesi"]
[null,"Öz Sermaye","Yatırım sermayesi",null,350]
[null,"Öz Sermaye","Birikmiş dağıtılmayan kar"]
[null,"Toplam Borç ve Öz Sermaye",null,{"$f":"SUBTOTAL(109,Borçlar[Önceki Yıl])","v":500},{"$f":"SUBTOTAL(109,Borçlar[Bu Yıl])","v":700}]

{"sheet":"Kategoriler","index":3,"n_rows":9,"n_cols":2,"rows_kept":9}
[null,"Kategoriler"]
[]
[null,"Kategoriler"]
[null,"Mevcut Varlıklar"]
[null,"Sabit Varlıklar"]
[null,"Diğer Varlıklar"]
[null,"Kısa Vadeli Borçlar"]
[null,"Uzun Vadeli Borçlar"]
[null,"Öz Sermaye"]